fUSD/lending_fUSD_20260702
["ID","MTS","AMOUNT","RATE_DAILY","PERIOD"]
[426871428,1782970239000,-751.885621,0.0003,7]
[426871426,1782970239000,-751.885621,0.0003,7]
[426871432,1782970239000,-151.0,0.0003,30]
[426871430,1782970239000,-151.0,0.0003,30]
[426871438,1782970239000,-210.425724,0.0003,30]
[426871434,1782970239000,-151.0,0.0003,30]
[426871416,1782970239000,-151.0,0.0003,7]
[426871463,1782970239000,-2499.96,0.0003,2]
[426871459,1782970239000,-800.0,0.0003,2]
[426871465,1782970239000,-151.0,0.0003,7]
[426871454,1782970239000,-12499.98,0.0003,2]
[426871436,1782970239000,-151.0,0.0003,30]
[426871452,1782970239000,-12306.2,0.0003,2]
[426871457,1782970239000,-151.0,0.0003,7]
[426871444,1782970239000,-151.0,0.0003,7]
[426871450,1782970239000,-12499.98,0.0003,2]
[426871446,1782970239000,-12499.96,0.0003,2]
[426871442,1782970239000,-151.0,0.0003,7]
[426871440,1782970239000,-151.0,0.0003,7]
[426871448,1782970239000,-12499.92,0.0003,2]
[426871574,1782970240000,-2000.0,0.00030136,2]
[426871566,1782970240000,-2000.0,0.00030136,2]
[426871571,1782970240000,-2000.0,0.00030136,2]
[426871567,1782970240000,-2000.0,0.00030136,2]
[426871586,1782970240000,-2000.0,0.00030136,2]
[426871565,1782970240000,-2000.0,0.00030136,2]
[426871569,1782970240000,-2000.0,0.00030136,2]
[426871570,1782970240000,-2000.0,0.00030136,2]
[426871564,1782970240000,-2000.0,0.00030136,2]
[426871563,1782970240000,-2000.0,0.00030136,2]
[426871568,1782970240000,-2000.0,0.00030136,2]
[426871573,1782970240000,-2000.0,0.00030136,2]
[426871579,1782970240000,-2000.0,0.00030136,2]
[426871576,1782970240000,-2000.0,0.00030136,2]
[426871578,1782970240000,-2000.0,0.00030136,2]
[426871577,1782970240000,-2000.0,0.00030136,2]
[426871575,1782970240000,-2000.0,0.00030136,2]
[426871580,1782970240000,-2000.0,0.00030136,2]
[426871584,1782970240000,-2000.0,0.00030136,2]
[426871582,1782970240000,-2000.0,0.00030136,2]
[426871581,1782970240000,-2000.0,0.00030136,2]
[426871583,1782970240000,-2000.0,0.00030136,2]
[426871585,1782970240000,-2000.0,0.00030136,2]
[426871558,1782970240000,-2000.0,0.00030136,2]
[426871572,1782970240000,-2000.0,0.00030136,2]
[426871561,1782970240000,-2000.0,0.00030136,2]
[426871551,1782970240000,-2000.0,0.00030136,2]
[426871562,1782970240000,-2000.0,0.00030136,2]
[426871588,1782970240000,-500.0,0.00030136,15]
[426871539,1782970240000,-2000.0,0.00030131,90]
[426871531,1782970240000,-500.0,0.00030028,2]
[426871529,1782970240000,-500.0,0.00030028,2]
[426871540,1782970240000,-2000.0,0.00030136,2]
[426871536,1782970240000,-10068.9557402,0.00030041,2]
[426871533,1782970240000,-359.14869591,0.00030028,2]
[426871537,1782970240000,-500.0,0.00030106,19]
[426871541,1782970240000,-2000.0,0.00030136,2]
[426871543,1782970240000,-2000.0,0.00030136,2]
[426871548,1782970240000,-2000.0,0.00030136,2]
[426871545,1782970240000,-2000.0,0.00030136,2]
[426871550,1782970240000,-2000.0,0.00030136,2]
[426871552,1782970240000,-2000.0,0.00030136,2]
[426871549,1782970240000,-2000.0,0.00030136,2]
[426871542,1782970240000,-2000.0,0.00030136,2]
[426871547,1782970240000,-2000.0,0.00030136,2]
[426871544,1782970240000,-2000.0,0.00030136,2]
[426871546,1782970240000,-2000.0,0.00030136,2]
[426871554,1782970240000,-2000.0,0.00030136,2]
[426871553,1782970240000,-2000.0,0.00030136,2]
[426871556,1782970240000,-2000.0,0.00030136,2]
[426871557,1782970240000,-2000.0,0.00030136,2]
[426871555,1782970240000,-2000.0,0.00030136,2]
[426871560,1782970240000,-2000.0,0.00030136,2]
[426871559,1782970240000,-2000.0,0.00030136,2]
[426871591,1782970240000,-500.0,0.00030136,15]
[426871629,1782970240000,-978.48,0.00030397,7]
[426871590,1782970240000,-500.0,0.00030136,15]
[426871620,1782970240000,-251.0,0.0003036,2]
[426871621,1782970240000,-251.0,0.0003036,2]
[426871622,1782970240000,-251.0,0.0003036,2]
[426871632,1782970240000,-151.0,0.00030398,7]
[426871624,1782970240000,-252.93,0.00030362,7]
[426871625,1782970240000,-2000.0,0.00030372,26]
[426871626,1782970240000,-216.6671885,0.00030383,30]
[426871631,1782970240000,-151.0,0.00030398,7]
[426871627,1782970240000,-500.34,0.00030397,7]
[426871628,1782970240000,-500.34,0.00030397,7]
[426871630,1782970240000,-978.48,0.00030397,7]
[426871633,1782970240000,-151.0,0.00030398,7]
[426871640,1782970240000,-164.451434,0.00030398,7]
[426871641,1782970240000,-164.451434,0.00030398,7]
[426871637,1782970240000,-1373.591092,0.00030398,7]
[426871638,1782970240000,-1373.591092,0.00030398,7]
[426871635,1782970240000,-1373.591092,0.00030398,7]
[426871636,1782970240000,-1373.591092,0.00030398,7]
[426871642,1782970240000,-164.451434,0.00030398,7]
[426871634,1782970240000,-151.0,0.00030398,7]
[426871639,1782970240000,-164.451434,0.00030398,7]
[426871643,1782970240000,-676.91985521,0.000304,2]
[426871645,1782970240000,-184.829,0.00030401,26]
[426871644,1782970240000,-3327.764,0.00030401,26]
[426871589,1782970240000,-500.0,0.00030136,15]
[426871611,1782970240000,-332.985129,0.00030301,7]
[426871616,1782970240000,-332.985129,0.00030301,7]
[426871623,1782970240000,-251.0,0.0003036,2]
[426871617,1782970240000,-9000.0,0.00030303,5]
[426871592,1782970240000,-500.0,0.00030136,15]
[426871593,1782970240000,-510.87608659,0.00030136,15]
[426871597,1782970240000,-237.73146944,0.00030137,2]
[426871587,1782970240000,-1072.17329972,0.00030136,2]
[426871594,1782970240000,-192.83722707,0.00030137,2]
[426871596,1782970240000,-578.51168122,0.00030137,2]
[426871595,1782970240000,-385.67445415,0.00030137,2]
[426871599,1782970240000,-7033.63055934,0.00030137,7]
[426871614,1782970240000,-1266.173167,0.00030301,7]
[426871607,1782970240000,-500.0,0.00030299,2]
[426871601,1782970240000,-451.31142058,0.00030137,2]
[426871600,1782970240000,-7033.63055934,0.00030137,7]
[426871608,1782970240000,-10375.26670731,0.000303,2]
[426871598,1782970240000,-475.46293887,0.00030137,2]
[426871605,1782970240000,-2000.0,0.00030149,2]
[426871609,1782970240000,-1266.173167,0.00030301,7]
[426871619,1782970240000,-152.81357541,0.00030344,2]
[426871615,1782970240000,-332.985129,0.00030301,7]
[426871613,1782970240000,-332.985129,0.00030301,7]
[426871610,1782970240000,-1266.173167,0.00030301,7]
[426871618,1782970240000,-2000.0,0.00030341,16]
[426871606,1782970240000,-2433.94079362,0.00030158,2]
[426871603,1782970240000,-220.0,0.00030137,7]
[426871602,1782970240000,-460.93731242,0.00030137,30]
[426871604,1782970240000,-2493.9796,0.00030149,2]
[426871612,1782970240000,-1266.173167,0.00030301,7]
[426871686,1782970241000,-251.0,0.0003069,2]
[426871695,1782970241000,-3593.652962,0.00030847,2]
[426871680,1782970241000,-251.0,0.0003069,2]
[426871684,1782970241000,-251.0,0.0003069,2]
[426871682,1782970241000,-251.0,0.0003069,2]
[426871676,1782970241000,-1234.848,0.00030645,2]
[426871683,1782970241000,-251.0,0.0003069,2]
[426871677,1782970241000,-3577.628,0.00030645,2]
[426871678,1782970241000,-680.0,0.00030653,5]
[426871679,1782970241000,-165.58,0.00030663,7]
[426871697,1782970241000,-10375.26670731,0.000309,2]
[426871675,1782970241000,-1366.341,0.00030645,2]
[426871694,1782970241000,-3000.0,0.00030821,32]
[426871707,1782970241000,-251.0,0.0003102,2]
[426871687,1782970241000,-251.0,0.0003069,2]
[426871688,1782970241000,-2000.0,0.00030698,8]
[426871696,1782970241000,-207.0,0.00030883,10]
[426871691,1782970241000,-165.75,0.00030718,7]
[426871692,1782970241000,-460.93731242,0.00030746,30]
[426871689,1782970241000,-2433.94079368,0.00030706,2]
[426871690,1782970241000,-2000.0,0.0003071,17]
[426871693,1782970241000,-2000.0,0.00030819,32]
[426871698,1782970241000,-520.88626819,0.000309,2]
[426871701,1782970241000,-1000.0,0.00031,7]
[426871699,1782970241000,-10068.9557402,0.00030953,2]
[426871681,1782970241000,-251.0,0.0003069,2]
[426871685,1782970241000,-279.4681998,0.0003069,2]
[426871674,1782970241000,-230.0,0.00030645,2]
[426871647,1782970241000,-2000.0,0.00030409,59]
[426871670,1782970241000,-329.58,0.00030542,7]
[426871705,1782970241000,-251.0,0.0003102,2]
[426871651,1782970241000,-2433.94079362,0.00030432,2]
[426871646,1782970241000,-2000.0,0.00030408,31]
[426871648,1782970241000,-3000.0,0.0003041,31]
[426871650,1782970241000,-250.9,0.00030422,7]
[426871649,1782970241000,-163.65,0.00030411,120]
[426871652,1782970241000,-730.14902375,0.0003044,2]
[426871653,1782970241000,-151.0,0.00030468,7]
[426871658,1782970241000,-356.58,0.00030476,7]
[426871654,1782970241000,-151.0,0.00030468,7]
[426871656,1782970241000,-166.0,0.00030468,7]
[426871662,1782970241000,-800.0,0.000305,2]
[426871672,1782970241000,-1973.29945726,0.00030614,2]
[426871655,1782970241000,-151.0,0.00030468,7]
[426871659,1782970241000,-207.0,0.00030481,30]
[426871661,1782970241000,-10068.9557402,0.00030497,2]
[426871660,1782970241000,-327.79,0.00030483,7]
[426871664,1782970241000,-800.0,0.000305,2]
[426871673,1782970241000,-1282.816,0.00030645,2]
[426871663,1782970241000,-557.7,0.000305,7]
[426871671,1782970241000,-10375.26670731,0.000306,2]
[426871668,1782970241000,-150.0,0.00030536,30]
[426871669,1782970241000,-150.16,0.00030536,30]
[426871665,1782970241000,-800.0,0.000305,2]
[426871666,1782970241000,-800.0,0.000305,2]
[426871667,1782970241000,-360.23,0.00030534,7]
[426871657,1782970241000,-166.0,0.00030468,7]
[426871702,1782970241000,-200.0,0.00031,11]
[426871745,1782970241000,-683.0,0.00031471,5]
[426871704,1782970241000,-251.0,0.0003102,2]
[426871747,1782970241000,-800.0,0.000315,2]
[426871735,1782970241000,-360.23,0.00031352,2]
[426871740,1782970241000,-500.0,0.00031356,60]
[426871742,1782970241000,-683.0,0.00031368,5]
[426871744,1782970241000,-10068.9557402,0.00031409,2]
[426871741,1782970241000,-329.58,0.00031359,2]
[426871739,1782970241000,-535.56138164,0.00031356,60]
[426871737,1782970241000,-460.93731242,0.00031355,30]
[426871743,1782970241000,-303.0,0.00031375,7]
[426871738,1782970241000,-537.74883894,0.00031356,60]
[426871762,1782970241000,-808.005991,0.00031757,7]
[426871748,1782970241000,-10375.26670731,0.000315,2]
[426871746,1782970241000,-2000.0,0.00031492,11]
[426871750,1782970241000,-151.0,0.000315,7]
[426871756,1782970241000,-152.81357541,0.00031688,2]
[426871749,1782970241000,-151.0,0.000315,7]
[426871751,1782970241000,-151.0,0.000315,7]
[426871760,1782970241000,-229.4,0.00031754,14]
[426871753,1782970241000,-433.71,0.0003152,7]
[426871758,1782970241000,-165.58,0.00031724,30]
[426871752,1782970241000,-2000.0,0.00031506,15]
[426871755,1782970241000,-151.0,0.00031646,2]
[426871754,1782970241000,-3000.0,0.00031643,34]
[426871757,1782970241000,-30163.8207279,0.00031698,2]
[426871761,1782970241000,-808.005991,0.00031757,7]
[426871700,1782970241000,-800.0,0.00031,2]
[426871759,1782970241000,-712.46488553,0.00031735,2]
[426871736,1782970241000,-2000.0,0.00031354,60]
[426871763,1782970241000,-808.005991,0.00031757,7]
[426871732,1782970241000,-186.43909326,0.0003135,2]
[426871727,1782970241000,-327.79,0.00031308,2]
[426871708,1782970241000,-251.0,0.0003102,2]
[426871706,1782970241000,-251.0,0.0003102,2]
[426871709,1782970241000,-251.0,0.0003102,2]
[426871711,1782970241000,-1215.8,0.00031137,30]
[426871721,1782970241000,-2000.0,0.0003123,33]
[426871722,1782970241000,-3000.0,0.00031232,33]
[426871712,1782970241000,-557.7,0.000312,7]
[426871715,1782970241000,-430.01,0.00031205,30]
[426871710,1782970241000,-251.0,0.0003102,2]
[426871713,1782970241000,-10375.26670731,0.000312,2]
[426871714,1782970241000,-252.93,0.00031202,2]
[426871716,1782970241000,-155.48,0.0003122,2]
[426871703,1782970241000,-500.0,0.00031009,21]
[426871719,1782970241000,-5231.87558654,0.00031221,28]
[426871733,1782970241000,-251.0,0.0003135,2]
[426871734,1782970241000,-251.0,0.0003135,2]
[426871729,1782970241000,-9629.450496,0.0003135,2]
[426871731,1782970241000,-15750.88444812,0.0003135,2]
[426871720,1782970241000,-7078.9059,0.00031221,28]
[426871723,1782970241000,-250.9,0.00031254,2]
[426871730,1782970241000,-11862.767348,0.0003135,2]
[426871728,1782970241000,-254.0,0.00031347,2]
[426871725,1782970241000,-5864.50644178,0.0003127,2]
[426871726,1782970241000,-356.58,0.00031302,2]
[426871717,1782970241000,-1982.51012511,0.00031221,28]
[426871718,1782970241000,-3497.38285513,0.00031221,28]
[426871724,1782970241000,-372.49695097,0.0003127,2]
[426871804,1782970242000,-201.49498663,0.00032,120]
[426871803,1782970242000,-200.0,0.00032,12]
[426871802,1782970242000,-177.73199773,0.00032,120]
[426871799,1782970242000,-170.39085141,0.00032,120]
[426871787,1782970242000,-185.69849147,0.00032,120]
[426871801,1782970242000,-170.12893333,0.00032,120]
[426871797,1782970242000,-191.2900957,0.00032,120]
[426871791,1782970242000,-171.79432032,0.00032,120]
[426871796,1782970242000,-200.0,0.00032,120]
[426871800,1782970242000,-190.70370481,0.00032,120]
[426871798,1782970242000,-183.78208604,0.00032,120]
[426871811,1782970242000,-210.76,0.00032,14]
[426871806,1782970242000,-215.43268497,0.00032,120]
[426871805,1782970242000,-25679.68646693,0.00032,7]
[426871807,1782970242000,-221.20051827,0.00032,120]
[426871809,1782970242000,-800.0,0.00032,5]
[426871810,1782970242000,-557.7,0.00032,7]
[426871812,1782970242000,-800.0,0.00032,12]
[426871813,1782970242000,-800.0,0.00032,12]
[426871814,1782970242000,-800.0,0.00032,12]
[426871815,1782970242000,-800.0,0.00032,12]
[426871818,1782970242000,-800.0,0.00032,12]
[426871816,1782970242000,-800.0,0.00032,12]
[426871788,1782970242000,-173.21879951,0.00032,120]
[426871808,1782970242000,-213.27932643,0.00032,120]
[426871790,1782970242000,-186.2002301,0.00032,120]
[426871778,1782970242000,-3593.652962,0.00031873,2]
[426871794,1782970242000,-183.50788573,0.00032,120]
[426871817,1782970242000,-800.0,0.00032,12]
[426871769,1782970242000,-282.02313025,0.00031786,7]
[426871771,1782970242000,-150.15,0.00031813,14]
[426871770,1782970242000,-10375.26670731,0.000318,2]
[426871772,1782970242000,-172.87,0.00031813,14]
[426871766,1782970242000,-165.75,0.00031768,30]
[426871764,1782970242000,-808.005991,0.00031757,7]
[426871765,1782970242000,-1973.29945726,0.00031757,2]
[426871768,1782970242000,-151.0,0.00031786,7]
[426871767,1782970242000,-223.96,0.00031778,120]
[426871773,1782970242000,-172.87,0.00031813,14]
[426871776,1782970242000,-550.28588655,0.00031825,2]
[426871786,1782970242000,-2000.0,0.00031998,12]
[426871775,1782970242000,-611.93147459,0.00031815,2]
[426871780,1782970242000,-28997.39221857,0.000319,7]
[426871779,1782970242000,-500.0,0.00031899,2]
[426871781,1782970242000,-520.88626819,0.000319,2]
[426871783,1782970242000,-457.90611043,0.00031939,23]
[426871782,1782970242000,-730.14902375,0.00031926,2]
[426871784,1782970242000,-460.93731242,0.00031963,30]
[426871774,1782970242000,-172.86,0.00031813,14]
[426871785,1782970242000,-400.36,0.00031971,3]
[426871792,1782970242000,-199.41399457,0.00032,120]
[426871793,1782970242000,-186.55433378,0.00032,120]
[426871789,1782970242000,-193.29662383,0.00032,120]
[426871795,1782970242000,-601.83599404,0.00032,120]
[426871777,1782970242000,-10068.9557402,0.00031865,2]
[426871819,1782970242000,-800.0,0.00032,12]
[426871823,1782970242000,-751.885621,0.00032,7]
[426871821,1782970242000,-3000.0,0.00032,25]
[426871855,1782970242000,-264.56400105,0.00032301,2]
[426871857,1782970242000,-150.0,0.00032302,2]
[426871860,1782970242000,-150.0,0.00032302,2]
[426871859,1782970242000,-150.0,0.00032302,5]
[426871866,1782970242000,-500.0,0.00032302,2]
[426871856,1782970242000,-229.4,0.00032302,14]
[426871858,1782970242000,-150.0,0.00032302,5]
[426871862,1782970242000,-150.0,0.00032302,2]
[426871861,1782970242000,-163.9566741,0.00032302,5]
[426871863,1782970242000,-241.80115163,0.00032302,2]
[426871864,1782970242000,-157.24318069,0.00032302,2]
[426871865,1782970242000,-500.0,0.00032302,2]
[426871867,1782970242000,-500.0,0.00032302,2]
[426871878,1782970242000,-500.0,0.00032302,2]
[426871868,1782970242000,-500.0,0.00032302,2]
[426871869,1782970242000,-500.0,0.00032302,2]
[426871871,1782970242000,-500.0,0.00032302,2]
[426871870,1782970242000,-500.0,0.00032302,2]
[426871877,1782970242000,-500.0,0.00032302,2]
[426871872,1782970242000,-500.0,0.00032302,2]
[426871875,1782970242000,-500.0,0.00032302,2]
[426871874,1782970242000,-576.98799893,0.00032302,2]
[426871873,1782970242000,-500.0,0.00032302,2]
[426871820,1782970242000,-3030.0,0.00032,25]
[426871879,1782970242000,-500.0,0.00032302,2]
[426871851,1782970242000,-510.25,0.00032232,7]
[426871848,1782970242000,-360.23,0.00032171,30]
[426871876,1782970242000,-500.0,0.00032302,2]
[426871850,1782970242000,-1268.7,0.00032232,7]
[426871847,1782970242000,-327.79,0.00032133,30]
[426871824,1782970242000,-751.885621,0.00032,7]
[426871822,1782970242000,-285.05513885,0.00032,30]
[426871825,1782970242000,-751.885621,0.00032,7]
[426871828,1782970242000,-800.0,0.00032,12]
[426871826,1782970242000,-751.885621,0.00032,7]
[426871830,1782970242000,-800.0,0.00032,12]
[426871827,1782970242000,-800.0,0.00032,12]
[426871832,1782970242000,-800.0,0.00032,12]
[426871833,1782970242000,-800.0,0.00032,12]
[426871837,1782970242000,-3000.0,0.00032009,2]
[426871836,1782970242000,-500.34,0.00032009,7]
[426871838,1782970242000,-2168.85062396,0.0003201,2]
[426871829,1782970242000,-800.0,0.00032,12]
[426871831,1782970242000,-800.0,0.00032,12]
[426871849,1782970242000,-329.58,0.00032177,30]
[426871846,1782970242000,-356.58,0.00032127,30]
[426871845,1782970242000,-10375.26670731,0.000321,2]
[426871834,1782970242000,-800.0,0.00032,12]
[426871853,1782970242000,-2000.0,0.00032291,6]
[426871843,1782970242000,-3000.0,0.00032054,35]
[426871844,1782970242000,-250.9,0.00032087,30]
[426871852,1782970242000,-3522.12,0.00032232,7]
[426871841,1782970242000,-2000.0,0.00032052,35]
[426871839,1782970242000,-252.93,0.00032042,30]
[426871835,1782970242000,-160.0,0.00032,30]
[426871854,1782970242000,-293.63376916,0.00032301,2]
[426871917,1782970243000,-500.0,0.00032302,2]
[426871916,1782970243000,-500.0,0.00032302,2]
[426871915,1782970243000,-500.0,0.00032302,2]
[426871913,1782970243000,-500.0,0.00032302,2]
[426871909,1782970243000,-500.0,0.00032302,2]
[426871911,1782970243000,-500.0,0.00032302,2]
[426871912,1782970243000,-500.0,0.00032302,2]
[426871910,1782970243000,-500.0,0.00032302,2]
[426871905,1782970243000,-150.0,0.00032302,2]
[426871914,1782970243000,-500.0,0.00032302,2]
[426871918,1782970243000,-500.0,0.00032302,2]
[426871921,1782970243000,-1687.0501921,0.00032303,2]
[426871926,1782970243000,-1698.099606,0.00032321,7]
[426871919,1782970243000,-500.0,0.00032302,2]
[426871920,1782970243000,-328.46275027,0.00032302,2]
[426871927,1782970243000,-151.0,0.00032321,7]
[426871924,1782970243000,-151.0,0.00032321,7]
[426871923,1782970243000,-151.0,0.00032321,7]
[426871928,1782970243000,-1698.099606,0.00032321,7]
[426871925,1782970243000,-296.201116,0.00032321,7]
[426871930,1782970243000,-1698.099606,0.00032321,7]
[426871931,1782970243000,-1698.099606,0.00032321,7]
[426871908,1782970243000,-500.0,0.00032302,2]
[426871929,1782970243000,-151.0,0.00032321,7]
[426871907,1782970243000,-238.78748961,0.00032302,2]
[426871892,1782970243000,-270.42081851,0.00032302,2]
[426871906,1782970243000,-150.0,0.00032302,2]
[426871941,1782970243000,-151.0,0.00032321,7]
[426871885,1782970243000,-500.0,0.00032302,2]
[426871881,1782970243000,-500.0,0.00032302,2]
[426871884,1782970243000,-202.67610635,0.00032302,2]
[426871882,1782970243000,-500.0,0.00032302,2]
[426871883,1782970243000,-250.0,0.00032302,2]
[426871887,1782970243000,-500.0,0.00032302,2]
[426871890,1782970243000,-500.0,0.00032302,2]
[426871886,1782970243000,-250.0,0.00032302,2]
[426871888,1782970243000,-500.0,0.00032302,2]
[426871889,1782970243000,-250.0,0.00032302,2]
[426871903,1782970243000,-150.0,0.00032302,2]
[426871880,1782970243000,-500.0,0.00032302,2]
[426871893,1782970243000,-630.90347374,0.00032302,2]
[426871891,1782970243000,-329.57946474,0.00032302,2]
[426871894,1782970243000,-150.0,0.00032302,2]
[426871897,1782970243000,-150.0,0.00032302,2]
[426871901,1782970243000,-150.0,0.00032302,2]
[426871898,1782970243000,-150.0,0.00032302,2]
[426871899,1782970243000,-219.35237659,0.00032302,2]
[426871896,1782970243000,-150.0,0.00032302,2]
[426871900,1782970243000,-150.0,0.00032302,2]
[426871895,1782970243000,-150.0,0.00032302,2]
[426871904,1782970243000,-206.91786761,0.00032302,2]
[426871902,1782970243000,-201.28724746,0.00032302,2]
[426871932,1782970243000,-1605.5331,0.00032321,7]
[426871922,1782970243000,-10068.9557402,0.00032321,2]
[426871935,1782970243000,-1605.5331,0.00032321,7]
[426871958,1782970243000,-2000.0,0.00032668,34]
[426871963,1782970243000,-500.34,0.00032699,7]
[426871967,1782970243000,-151.0,0.000327,7]
[426871970,1782970243000,-500.0,0.00032715,2]
[426871965,1782970243000,-557.7,0.000327,7]
[426871972,1782970243000,-500.0,0.00032716,2]
[426871971,1782970243000,-500.0,0.00032716,2]
[426871976,1782970243000,-500.0,0.00032716,2]
[426871969,1782970243000,-391993.35392453,0.000327,13]
[426871974,1782970243000,-514.49947123,0.00032716,2]
[426871966,1782970243000,-151.0,0.000327,7]
[426871961,1782970243000,-2000.0,0.00032683,36]
[426871973,1782970243000,-500.0,0.00032716,2]
[426871977,1782970243000,-500.0,0.00032716,2]
[426871978,1782970243000,-500.0,0.00032716,2]
[426871979,1782970243000,-500.0,0.00032716,2]
[426871986,1782970243000,-151.0,0.00032716,7]
[426871985,1782970243000,-151.0,0.00032716,7]
[426871983,1782970243000,-251.96742602,0.00032716,2]
[426871987,1782970243000,-200.0,0.00032725,2]
[426871981,1782970243000,-500.0,0.00032716,2]
[426871984,1782970243000,-616.0,0.00032716,2]
[426871980,1782970243000,-500.0,0.00032716,2]
[426871933,1782970243000,-1605.5331,0.00032321,7]
[426871975,1782970243000,-500.0,0.00032716,2]
[426871964,1782970243000,-500.0,0.00032699,2]
[426871968,1782970243000,-152.83298,0.000327,7]
[426871960,1782970243000,-3562.40126703,0.00032675,2]
[426871962,1782970243000,-2000.0,0.00032698,13]
[426871934,1782970243000,-1605.5331,0.00032321,7]
[426871937,1782970243000,-388.461329,0.00032321,7]
[426871936,1782970243000,-388.461329,0.00032321,7]
[426871938,1782970243000,-388.461329,0.00032321,7]
[426871940,1782970243000,-151.0,0.00032321,7]
[426871982,1782970243000,-500.0,0.00032716,2]
[426871939,1782970243000,-388.461329,0.00032321,7]
[426871942,1782970243000,-150.15,0.00032361,14]
[426871944,1782970243000,-244.08,0.000324,7]
[426871947,1782970243000,-3000.0,0.00032465,36]
[426871945,1782970243000,-283.0,0.0003244,10]
[426871943,1782970243000,-2335.5422748,0.00032388,2]
[426871957,1782970243000,-350.0,0.00032654,3]
[426871959,1782970243000,-378.006184,0.0003267,7]
[426871946,1782970243000,-12000.0,0.00032463,7]
[426871956,1782970243000,-200.0,0.00032651,2]
[426871955,1782970243000,-259.0,0.00032632,3]
[426871953,1782970243000,-155.48,0.00032577,2]
[426871954,1782970243000,-2000.0,0.00032598,4]
[426871950,1782970243000,-978.48,0.00032546,7]
[426871952,1782970243000,-460.93731242,0.00032572,30]
[426871949,1782970243000,-2000.0,0.00032511,3]
[426871948,1782970243000,-1028.84592082,0.00032505,2]
[426871951,1782970243000,-27081.87088676,0.00032547,2]
[426872022,1782970244000,-209.830546,0.00032877,7]
[426872024,1782970244000,-151.0,0.00032877,7]
[426872025,1782970244000,-303.166942,0.00032877,7]
[426872026,1782970244000,-151.0,0.00032877,7]
[426872023,1782970244000,-161.778016,0.00032877,7]
[426872014,1782970244000,-151.0,0.00032877,7]
[426872018,1782970244000,-659.227098,0.00032877,7]
[426872016,1782970244000,-659.227098,0.00032877,7]
[426872015,1782970244000,-659.227098,0.00032877,7]
[426872031,1782970244000,-151.0,0.00032877,7]
[426872021,1782970244000,-209.830546,0.00032877,7]
[426872029,1782970244000,-303.166942,0.00032877,7]
[426872043,1782970244000,-189.840966,0.00032877,7]
[426872032,1782970244000,-303.166942,0.00032877,7]
[426872030,1782970244000,-151.0,0.00032877,7]
[426872028,1782970244000,-151.0,0.00032877,7]
[426872034,1782970244000,-151.0,0.00032877,7]
[426872036,1782970244000,-151.0,0.00032877,7]
[426872033,1782970244000,-151.0,0.00032877,7]
[426872038,1782970244000,-312.22493,0.00032877,7]
[426872041,1782970244000,-151.0,0.00032877,7]
[426872035,1782970244000,-303.166942,0.00032877,7]
[426872040,1782970244000,-152.930303,0.00032877,7]
[426872039,1782970244000,-243.743479,0.00032877,7]
[426872017,1782970244000,-659.227098,0.00032877,7]
[426872027,1782970244000,-151.000008,0.00032877,7]
[426872012,1782970244000,-151.0,0.00032877,7]
[426871989,1782970244000,-10068.9557402,0.00032777,2]